{"text_format":"1","workbook":"xlsx","n_sheets":1,"sheets":["Audit"],"not_rendered":{"charts":0,"images":1,"macros":1,"external_links":0,"defined_names":0,"comments":0,"pivot_tables":0},"unopened":[],"bounds":{"document_bytes":16777216,"sheet_cells":100000,"rows_first":2000,"rows_last":500,"rows_between":2000,"halvings":0,"cell_chars":16384,"cell_head_chars":4096},"cells_cut":0,"cells_raw":0,"read":"whole","date_system":"1900"}

{"sheet":"Audit","index":0,"n_rows":265,"n_cols":22,"rows_kept":265,"cut":false,"hidden":false,"merged":[[40,1,42,9],[8,1,8,3],[12,1,14,9],[17,1,19,9],[22,1,25,9],[28,1,31,9],[34,1,37,9],[93,1,95,9],[102,1,104,9],[107,1,109,9],[112,1,114,9],[45,1,47,9],[50,1,52,9],[55,1,57,9],[60,1,64,9],[73,1,75,9],[78,1,80,9],[66,1,68,9],[2,4,2,6],[3,4,3,6],[4,4,4,6],[183,1,185,9],[188,1,190,9],[153,1,155,9],[158,1,160,9],[163,1,165,9],[168,1,170,9],[173,1,175,9],[178,1,180,9],[117,1,119,9],[122,1,125,9],[133,1,135,9],[138,1,140,9],[143,1,145,9],[253,1,253,2],[253,5,254,6],[5,4,5,6],[7,10,7,12],[217,1,219,9],[222,1,224,9],[227,1,229,9],[232,1,234,9],[241,1,243,9],[193,1,195,9],[198,1,200,9],[203,1,205,9],[212,1,214,9],[148,1,150,9],[83,1,85,9],[88,1,90,9]]}
[]
[]
[null,"Name"]
[null,"Company"]
[null,"Total # Employees"]
[null,"Position",null,null,null,null,null,null,null,null,null,null,null,null,null,null,null,null,null,null,null,"yes"]
[null,null,null,null,null,null,null,null,null,null,null,null,null,null,null,null,null,null,null,null,null,"no"]
[null,"What are MSD's costing your facility on an annual basis? (Please enter \"total cost\" amount)"]
[]
[]
[null,"ESTABLISHMENT",null,null,null,null,null,null,null,"Important - please answer \"yes\" or \"no\""]
[]
[null,"1. Have responsibilities for setting up and managing the MSD (musculoskeletal disorder) prevention process been assigned and communicated?"]
[null,null,null,null,null,null,null,null,null,null,null,null,null,{"$f":"IF(L14=\"yes\",\"ü\",IF(L14=\"no\",\"ü\",\"\"))","v":""},null,null,{"$f":"IF(L14=\"yes\",\"1\",IF(L14=\"no\",\"0\",\"\"))","v":""},9.0899999999999995E-2,null,{"$f":"Q14*R14","v":{"$error":"#VALUE!"}}]
[null,null,null,null,null,null,null,null,null,null,null,null,null,{"$f":"IF(L15=\"yes\",\"ü\",IF(L15=\"no\",\"ü\",\"\"))","v":""},null,null,{"$f":"IF(L15=\"yes\",\"1\",IF(L15=\"no\",\"0\",\"\"))","v":""}]
[null,null,null,null,null,null,null,null,null,null,null,null,null,"",null,null,""]
[null,null,null,null,null,null,null,null,null,null,null,null,null,"",null,null,""]
[null,"2. Is there a written policy or guidelines for the MSD prevention process?",null,null,null,null,null,null,null,null,null,null,null,"",null,null,""]
[null,null,null,null,null,null,null,null,null,null,null,null,null,"",null,null,"",9.0899999999999995E-2,null,{"$f":"Q19*R19","v":{"$error":"#VALUE!"}}]
[null,null,null,null,null,null,null,null,null,null,null,null,null,"",null,null,""]
[null,null,null,null,null,null,null,null,null,null,null,null,null,"",null,null,""]
[null,null,null,null,null,null,null,null,null,null,null,null,null,"",null,null,""]
[null,"3. Do managers, supervisors, ergonomics team members and employees know what is expected of them and how they will be held accountable for meeting those responsibilities?",null,null,null,null,null,null,null,null,null,null,null,"",null,null,""]
[null,null,null,null,null,null,null,null,null,null,null,null,null,"",null,null,""]
[null,null,null,null,null,null,null,null,null,null,null,null,null,"",null,null,"",9.0899999999999995E-2,null,{"$error":"#VALUE!"}]
[null,null,null,null,null,null,null,null,null,null,null,null,null,"",null,null,""]
[null,null,null,null,null,null,null,null,null,null,null,null,null,"",null,null,""]
[null,null,null,null,null,null,null,null,null,null,null,null,null,"",null,null,""]
[null,"4. Have all responsible persons (above) been provided with the authority, resources, information and training necessary to meet their responsibilities?",null,null,null,null,null,null,null,null,null,null,null,"",null,null,""]
[null,null,null,null,null,null,null,null,null,null,null,null,null,"",null,null,""]
[null,null,null,null,null,null,null,null,null,null,null,null,null,"",null,null,"",9.0899999999999995E-2,null,{"$error":"#VALUE!"}]
[null,null,null,null,null,null,null,null,null,null,null,null,null,"",null,null,""]
[null,null,null,null,null,null,null,null,null,null,null,null,null,"",null,null,""]
[null,null,null,null,null,null,null,null,null,null,null,null,null,"",null,null,""]
[null,"5. Is a MSD prevention and ergonomic evaluation specialist employed or contracted to provide expertise, support, and direction of the MSD prevention process? ",null,null,null,null,null,null,null,null,null,null,null,"",null,null,""]
[null,null,null,null,null,null,null,null,null,null,null,null,null,"",null,null,"",9.0899999999999995E-2,null,{"$error":"#VALUE!"}]
[null,null,null,null,null,null,null,null,null,null,null,null,null,"",null,null,""]
[null,null,null,null,null,null,null,null,null,null,null,null,null,"",null,null,""]
[null,null,null,null,null,null,null,null,null,null,null,null,null,"",null,null,""]
[null,null,null,null,null,null,null,null,null,null,null,null,null,"",null,null,""]
[null,"6. Has initial basic training on the MSD prevention process been performed for upper management, supervision, and engineers?",null,null,null,null,null,null,null,null,null,null,null,"",null,null,""]
[null,null,null,null,null,null,null,null,null,null,null,null,null,"",null,null,"",9.0899999999999995E-2,null,{"$error":"#VALUE!"}]
[null,null,null,null,null,null,null,null,null,null,null,null,null,"",null,null,""]
[null,null,null,null,null,null,null,null,null,null,null,null,null,"",null,null,""]
[null,null,null,null,null,null,null,null,null,null,null,null,null,"",null,null,""]
[null,"7. Has management leadership of and commitment to the MSD prevention process been communicated to all employees?",null,null,null,null,null,null,null,null,null,null,null,"",null,null,""]
[null,null,null,null,null,null,null,null,null,null,null,null,null,"",null,null,"",9.0899999999999995E-2,null,{"$error":"#VALUE!"}]
[null,null,null,null,null,null,null,null,null,null,null,null,null,"",null,null,""]
[null,null,null,null,null,null,null,null,null,null,null,null,null,"",null,null,""]
[null,null,null,null,null,null,null,null,null,null,null,null,null,"",null,null,""]
[null,"8. Is there regular communication (at least monthly) with employees about the MSD prevention process and about how MSD is prevented?",null,null,null,null,null,null,null,null,null,null,null,"",null,null,""]
[null,null,null,null,null,null,null,null,null,null,null,null,null,"",null,null,"",9.0899999999999995E-2,null,{"$error":"#VALUE!"}]
[null,null,null,null,null,null,null,null,null,null,null,null,null,"",null,null,""]
[null,null,null,null,null,null,null,null,null,null,null,null,null,"",null,null,""]
[null,null,null,null,null,null,null,null,null,null,null,null,null,"",null,null,""]
[null,"9. Have employees received adequate information about the MSD prevention process, and have employees been involved in developing, implementing, and evaluating the elements of the process?",null,null,null,null,null,null,null,null,null,null,null,"",null,null,""]
[null,null,null,null,null,null,null,null,null,null,null,null,null,"",null,null,"",9.0899999999999995E-2,null,{"$error":"#VALUE!"}]
[null,null,null,null,null,null,null,null,null,null,null,null,null,"",null,null,""]
[null,null,null,null,null,null,null,null,null,null,null,null,null,"",null,null,""]
[null,null,null,null,null,null,null,null,null,null,null,null,null,"",null,null,""]
[null,"10. Have injury/illness reporting logs and workers compensation records been reviewed to help prioritize and develop a “game plan” for the MSD prevention process, and to establish and document MSD reduction goals related to MSD cases, MIR, lost/restricted workdays, and costs? ",null,null,null,null,null,null,null,null,null,null,null,"",null,null,""]
[null,null,null,null,null,null,null,null,null,null,null,null,null,"",null,null,""]
[null,null,null,null,null,null,null,null,null,null,null,null,null,"",null,null,""]
[null,null,null,null,null,null,null,null,null,null,null,null,null,"",null,null,"",9.0899999999999995E-2,null,{"$error":"#VALUE!"}]
[null,null,null,null,null,null,null,null,null,null,null,null,null,"",null,null,""]
[null,null,null,null,null,null,null,null,null,null,null,null,null,"",null,null,""]
[null,"11. Has a mandatory pre-shift warm-up exercise program been established and implemented?",null,null,null,null,null,null,null,null,null,null,null,"",null,null,""]
[null,null,null,null,null,null,null,null,null,null,null,null,null,"",null,null,"",9.0899999999999995E-2,null,{"$f":"Q68*R68","v":{"$error":"#VALUE!"}}]
[null,null,null,null,null,null,null,null,null,null,null,null,null,"",null,null,""]
[null,null,null,null,null,null,null,null,null,null,null,null,null,"",null,null,"",null,null,{"$f":"SUM(T14:T68)","v":{"$error":"#VALUE!"}},{"$f":"T70*100","v":{"$error":"#VALUE!"}}]
[null,null,null,null,null,null,null,null,null,null,null,null,null,"",null,null,""]
[null,"EDUCATION ",null,null,null,null,null,null,null,"Important - please answer \"yes\" or \"no\"",null,null,null,"",null,null,""]
[null,null,null,null,null,null,null,null,null,null,null,null,null,"",null,null,""]
[null,"12. Have training programs been developed and implemented for management leadership, ergonomics team, engineers, supervisors and employees? ",null,null,null,null,null,null,null,null,null,null,null,"",null,null,""]
[null,null,null,null,null,null,null,null,null,null,null,null,null,"",null,null,"",0.2,null,{"$f":"Q75*R75","v":{"$error":"#VALUE!"}}]
[null,null,null,null,null,null,null,null,null,null,null,null,null,"",null,null,""]
[null,null,null,null,null,null,null,null,null,null,null,null,null,"",null,null,""]
[null,null,null,null,null,null,null,null,null,null,null,null,null,"",null,null,""]
[null,"13. Has a schedule for employee classroom training been established, and is the facility on or ahead of this schedule?",null,null,null,null,null,null,null,null,null,null,null,{"$f":"IF(L79=\"yes\",\"ü\",IF(L79=\"no\",\"ü\",\"\"))","v":""},null,null,{"$f":"IF(L79=\"yes\",\"1\",IF(L79=\"no\",\"0\",\"\"))","v":""}]
[null,null,null,null,null,null,null,null,null,null,null,null,null,"",null,null,"",0.2,null,{"$f":"Q80*R80","v":{"$error":"#VALUE!"}}]
[null,null,null,null,null,null,null,null,null,null,null,null,null,"",null,null,""]
[null,null,null,null,null,null,null,null,null,null,null,null,null,"",null,null,""]
[null,null,null,null,null,null,null,null,null,null,null,null,null,"",null,null,""]
[null,"14. Have employees received formal classroom and one-on-one follow-up training on a priority basis that includes information about proactive approaches to MSD management and prevention?",null,null,null,null,null,null,null,null,null,null,null,"",null,null,""]
[null,null,null,null,null,null,null,null,null,null,null,null,null,"",null,null,"",0.2,null,{"$error":"#VALUE!"}]
[null,null,null,null,null,null,null,null,null,null,null,null,null,"",null,null,""]
[null,null,null,null,null,null,null,null,null,null,null,null,null,"",null,null,""]
[null,null,null,null,null,null,null,null,null,null,null,null,null,"",null,null,""]
[null,"15. Have the objectives, attendance and results of each training program been documented?",null,null,null,null,null,null,null,null,null,null,null,"",null,null,""]
[null,null,null,null,null,null,null,null,null,null,null,null,null,"",null,null,"",0.2,null,{"$error":"#VALUE!"}]
[null,null,null,null,null,null,null,null,null,null,null,null,null,"",null,null,""]
[null,null,null,null,null,null,null,null,null,null,null,null,null,"",null,null,""]
[null,null,null,null,null,null,null,null,null,null,null,null,null,"",null,null,""]
[null,"16. Have training programs been modified and improved based on a review of results if needed? ",null,null,null,null,null,null,null,null,null,null,null,"",null,null,""]
[null,null,null,null,null,null,null,null,null,null,null,null,null,"",null,null,"",0.2,null,{"$error":"#VALUE!"}]
[null,null,null,null,null,null,null,null,null,null,null,null,null,"",null,null,""]
[null,null,null,null,null,null,null,null,null,null,null,null,null,"",null,null,""]
[null,null,null,null,null,null,null,null,null,null,null,null,null,"",null,null,"",null,null,{"$f":"SUM(T75:T95)","v":{"$error":"#VALUE!"}},{"$f":"T98*100","v":{"$error":"#VALUE!"}}]
[null,null,null,null,null,null,null,null,null,null,null,null,null,"",null,null,""]
[null,"EARLY INTERVENTION",null,null,null,null,null,null,null,"Important - please answer \"yes\" or \"no\"",null,null,null,"",null,null,""]
[null,null,null,null,null,null,null,null,null,null,null,null,null,"",null,null,""]
[null,null,null,null,null,null,null,null,null,null,null,null,null,"",null,null,""]
[null,"17. Has there been a documented examination of existing policies and practices to ensure that they encourage and do not discourage early reporting of fatigue/discomfort and participation in the MSD prevention process?",null,null,null,null,null,null,null,null,null,null,null,"",null,null,""]
[null,null,null,null,null,null,null,null,null,null,null,null,null,"",null,null,"",0.2,null,{"$f":"Q104*R104","v":{"$error":"#VALUE!"}}]
[null,null,null,null,null,null,null,null,null,null,null,null,null,"",null,null,""]
[null,null,null,null,null,null,null,null,null,null,null,null,null,"",null,null,""]
[null,null,null,null,null,null,null,null,null,null,null,null,null,"",null,null,""]
[null,"18. Is there a policy that provides a clear way for employees to report excessive fatigue, discomfort, or MSD signs and symptoms? ",null,null,null,null,null,null,null,null,null,null,null,"",null,null,""]
[null,null,null,null,null,null,null,null,null,null,null,null,null,"",null,null,"",0.2,null,{"$f":"Q109*R109","v":{"$error":"#VALUE!"}}]
[null,null,null,null,null,null,null,null,null,null,null,null,null,"",null,null,""]
[null,null,null,null,null,null,null,null,null,null,null,null,null,"",null,null,""]
[null,null,null,null,null,null,null,null,null,null,null,null,null,"",null,null,""]
[null,"19. Do employees receive prompt responses to any report of excessive fatigue, discomfort, or MSD signs and symptoms?",null,null,null,null,null,null,null,null,null,null,null,"",null,null,""]
[null,null,null,null,null,null,null,null,null,null,null,null,null,"",null,null,"",0.2,null,{"$error":"#VALUE!"}]
[null,null,null,null,null,null,null,null,null,null,null,null,null,"",null,null,""]
[null,null,null,null,null,null,null,null,null,null,null,null,null,"",null,null,""]
[null,null,null,null,null,null,null,null,null,null,null,null,null,"",null,null,""]
[null,"20. Is there a prevention specialist (outside contract or internal resource) regularly available to address early reports of fatigue and offer self-help guidance for employees who do not need a medical evaluation?",null,null,null,null,null,null,null,null,null,null,null,"",null,null,""]
[null,null,null,null,null,null,null,null,null,null,null,null,null,"",null,null,"",0.2,null,{"$error":"#VALUE!"}]
[null,null,null,null,null,null,null,null,null,null,null,null,null,"",null,null,""]
[null,null,null,null,null,null,null,null,null,null,null,null,null,"",null,null,""]
[null,null,null,null,null,null,null,null,null,null,null,null,null,"",null,null,""]
[null,"21. Has leadership assigned responsibility for the early reporting system and is this responsibility outlined in the written MSD prevention process policy?",null,null,null,null,null,null,null,null,null,null,null,"",null,null,""]
[null,null,null,null,null,null,null,null,null,null,null,null,null,"",null,null,""]
[null,null,null,null,null,null,null,null,null,null,null,null,null,"",null,null,"",0.2,null,{"$error":"#VALUE!"}]
[null,null,null,null,null,null,null,null,null,null,null,null,null,"",null,null,""]
[null,null,null,null,null,null,null,null,null,null,null,null,null,"",null,null,""]
[null,null,null,null,null,null,null,null,null,null,null,null,null,"",null,null,"",null,null,{"$f":"SUM(T104:T125)","v":{"$error":"#VALUE!"}},{"$f":"T128*100","v":{"$error":"#VALUE!"}}]
[null,null,null,null,null,null,null,null,null,null,null,null,null,"",null,null,""]
[null,null,null,null,null,null,null,null,null,null,null,null,null,"",null,null,""]
[null,"ERGONOMICS",null,null,null,null,null,null,null,"Important - please answer \"yes\" or \"no\"",null,null,null,"",null,null,""]
[null,null,null,null,null,null,null,null,null,null,null,null,null,"",null,null,""]
[null,null,null,null,null,null,null,null,null,null,null,null,null,"",null,null,""]
[null,"22. Is there a functioning ergonomics team with a charter that is multi-disciplinary and has both management and employee representation?",null,null,null,null,null,null,null,null,null,null,null,"",null,null,""]
[null,null,null,null,null,null,null,null,null,null,null,null,null,"",null,null,"",6.6699999999999995E-2,null,{"$f":"Q135*R135","v":{"$error":"#VALUE!"}}]
[null,null,null,null,null,null,null,null,null,null,null,null,null,"",null,null,""]
[null,null,null,null,null,null,null,null,null,null,null,null,null,"",null,null,""]
[null,null,null,null,null,null,null,null,null,null,null,null,null,"",null,null,""]
[null,"23. Have members of the ergonomics team received adequate training in the evaluation, recognition and control of ergonomic risk factors?",null,null,null,null,null,null,null,null,null,null,null,"",null,null,""]
[null,null,null,null,null,null,null,null,null,null,null,null,null,"",null,null,"",6.6699999999999995E-2,null,{"$f":"Q140*R140","v":{"$error":"#VALUE!"}}]
[null,null,null,null,null,null,null,null,null,null,null,null,null,"",null,null,""]
[null,null,null,null,null,null,null,null,null,null,null,null,null,"",null,null,""]
[null,null,null,null,null,null,null,null,null,null,null,null,null,{"$f":"IF(L143=\"yes\",\"ü\",IF(L143=\"no\",\"ü\",\"\"))","v":""},null,null,{"$f":"IF(L143=\"yes\",\"1\",IF(L143=\"no\",\"0\",\"\"))","v":""}]
[null,"24. Does the ergonomics team have regularly scheduled meetings and are the actions of the team documented?",null,null,null,null,null,null,null,null,null,null,null,"",null,null,""]
[null,null,null,null,null,null,null,null,null,null,null,null,null,"",null,null,"",6.6699999999999995E-2,null,{"$error":"#VALUE!"}]
[null,null,null,null,null,null,null,null,null,null,null,null,null,"",null,null,""]
[null,null,null,null,null,null,null,null,null,null,null,null,null,null,null,null,""]
[null,null,null,null,null,null,null,null,null,null,null,null,null,null,null,null,""]
[null,"25. Are ergonomics team members identified to employees as contacts for ergonomic concerns?",null,null,null,null,null,null,null,null,null,null,null,null,null,null,""]
[null,null,null,null,null,null,null,null,null,null,null,null,null,null,null,null,"",6.6699999999999995E-2,null,{"$error":"#VALUE!"}]
[null,null,null,null,null,null,null,null,null,null,null,null,null,null,null,null,""]
[null,null,null,null,null,null,null,null,null,null,null,null,null,null,null,null,""]
[null,null,null,null,null,null,null,null,null,null,null,null,null,null,null,null,""]
[null,"26. Is there a system in place to handle employee concerns regarding ergonomics in a timely manner?",null,null,null,null,null,null,null,null,null,null,null,null,null,null,""]
[null,null,null,null,null,null,null,null,null,null,null,null,null,null,null,null,"",6.6699999999999995E-2,null,{"$error":"#VALUE!"}]
[null,null,null,null,null,null,null,null,null,null,null,null,null,null,null,null,""]
[null,null,null,null,null,null,null,null,null,null,null,null,null,"",null,null,""]
[null,null,null,null,null,null,null,null,null,null,null,null,null,"",null,null,""]
[null,"27. Has a prioritized list of jobs for ergonomic analysis been developed?",null,null,null,null,null,null,null,null,null,null,null,"",null,null,""]
[null,null,null,null,null,null,null,null,null,null,null,null,null,"",null,null,"",6.6699999999999995E-2,null,{"$error":"#VALUE!"}]
[null,null,null,null,null,null,null,null,null,null,null,null,null,"",null,null,""]
[null,null,null,null,null,null,null,null,null,null,null,null,null,"",null,null,""]
[null,null,null,null,null,null,null,null,null,null,null,null,null,"",null,null,""]
[null,"28. Has a schedule for ergonomic analysis been established, and is the facility on or ahead of this schedule? ",null,null,null,null,null,null,null,null,null,null,null,"",null,null,""]
[null,null,null,null,null,null,null,null,null,null,null,null,null,"",null,null,"",6.6699999999999995E-2,null,{"$error":"#VALUE!"}]
[null,null,null,null,null,null,null,null,null,null,null,null,null,"",null,null,""]
[null,null,null,null,null,null,null,null,null,null,null,null,null,"",null,null,""]
[null,null,null,null,null,null,null,null,null,null,null,null,null,"",null,null,""]
[null,"29. Have appropriate control measures been implemented when ergonomic risk factors are identified?",null,null,null,null,null,null,null,null,null,null,null,"",null,null,""]
[null,null,null,null,null,null,null,null,null,null,null,null,null,"",null,null,"",6.6699999999999995E-2,null,{"$error":"#VALUE!"}]
[null,null,null,null,null,null,null,null,null,null,null,null,null,"",null,null,""]
[null,null,null,null,null,null,null,null,null,null,null,null,null,"",null,null,""]
[null,null,null,null,null,null,null,null,null,null,null,null,null,"",null,null,""]
[null,"30. Is there a schedule and tracking process for control measures?",null,null,null,null,null,null,null,null,null,null,null,"",null,null,""]
[null,null,null,null,null,null,null,null,null,null,null,null,null,"",null,null,"",6.6699999999999995E-2,null,{"$error":"#VALUE!"}]
[null,null,null,null,null,null,null,null,null,null,null,null,null,"",null,null,""]
[null,null,null,null,null,null,null,null,null,null,null,null,null,"",null,null,""]
[null,null,null,null,null,null,null,null,null,null,null,null,null,"",null,null,""]
[null,"31. Is there a documented review process for implemented controls to determine the effectiveness of controls? ",null,null,null,null,null,null,null,null,null,null,null,"",null,null,""]
[null,null,null,null,null,null,null,null,null,null,null,null,null,"",null,null,"",6.6699999999999995E-2,null,{"$error":"#VALUE!"}]
[null,null,null,null,null,null,null,null,null,null,null,null,null,"",null,null,""]
[null,null,null,null,null,null,null,null,null,null,null,null,null,"",null,null,""]
[null,null,null,null,null,null,null,null,null,null,null,null,null,"",null,null,""]
[null,"32. Are ergonomic risk factors included in job safety analysis?",null,null,null,null,null,null,null,null,null,null,null,"",null,null,""]
[null,null,null,null,null,null,null,null,null,null,null,null,null,"",null,null,"",6.6699999999999995E-2,null,{"$error":"#VALUE!"}]
[null,null,null,null,null,null,null,null,null,null,null,null,null,"",null,null,""]
[null,null,null,null,null,null,null,null,null,null,null,null,null,"",null,null,""]
[null,null,null,null,null,null,null,null,null,null,null,null,null,"",null,null,""]
[null,"33. Are engineers trained in ergonomic design factors?",null,null,null,null,null,null,null,null,null,null,null,"",null,null,""]
[null,null,null,null,null,null,null,null,null,null,null,null,null,"",null,null,"",6.6699999999999995E-2,null,{"$error":"#VALUE!"}]
[null,null,null,null,null,null,null,null,null,null,null,null,null,"",null,null,""]
[null,null,null,null,null,null,null,null,null,null,null,null,null,"",null,null,""]
[null,null,null,null,null,null,null,null,null,null,null,null,null,"",null,null,""]
[null,"34. Do engineering ergonomics specifications exist for new and modified equipment, jobs, and processes?",null,null,null,null,null,null,null,null,null,null,null,"",null,null,""]
[null,null,null,null,null,null,null,null,null,null,null,null,null,"",null,null,"",6.6699999999999995E-2,null,{"$error":"#VALUE!"}]
[null,null,null,null,null,null,null,null,null,null,null,null,null,"",null,null,""]
[null,null,null,null,null,null,null,null,null,null,null,null,null,"",null,null,""]
[null,null,null,null,null,null,null,null,null,null,null,null,null,"",null,null,""]
[null,"35. Is ergonomic specification approval a requirement prior to purchase of new equipment and/or implementation of new processes?",null,null,null,null,null,null,null,null,null,null,null,"",null,null,""]
[null,null,null,null,null,null,null,null,null,null,null,null,null,"",null,null,"",6.6699999999999995E-2,null,{"$f":"Q200*R200","v":{"$error":"#VALUE!"}}]
[null,null,null,null,null,null,null,null,null,null,null,null,null,"",null,null,""]
[null,null,null,null,null,null,null,null,null,null,null,null,null,"",null,null,""]
[null,null,null,null,null,null,null,null,null,null,null,null,null,"",null,null,""]
[null,"36. Is the ergonomics team and affected employees actively involved in new product development, production design, and changes to existing operations? ",null,null,null,null,null,null,null,null,null,null,null,"",null,null,""]
[null,null,null,null,null,null,null,null,null,null,null,null,null,"",null,null,"",6.6699999999999995E-2,null,{"$error":"#VALUE!"}]
[null,null,null,null,null,null,null,null,null,null,null,null,null,"",null,null,""]
[null,null,null,null,null,null,null,null,null,null,null,null,null,{"$f":"IF(L207=\"yes\",\"ü\",IF(L207=\"no\",\"ü\",\"\"))","v":""},null,null,{"$f":"IF(L207=\"yes\",\"1\",IF(L207=\"no\",\"0\",\"\"))","v":""}]
[null,null,null,null,null,null,null,null,null,null,null,null,null,"",null,null,"",null,null,{"$f":"SUM(T135:T205)","v":{"$error":"#VALUE!"}},{"$f":"T208*100","v":{"$error":"#VALUE!"}}]
[null,null,null,null,null,null,null,null,null,null,null,null,null,"",null,null,""]
[null,null,null,null,null,null,null,null,null,null,null,null,null,"",null,null,""]
[null,"EVALUATION",null,null,null,null,null,null,null,"Important - please answer \"yes\" or \"no\"",null,null,null,"",null,null,""]
[null,null,null,null,null,null,null,null,null,null,null,null,null,"",null,null,""]
[null,"37. Is an annual self-assessment of each element of the MSD prevention process conducted and the results documented? ",null,null,null,null,null,null,null,null,null,null,null,"",null,null,""]
[null,null,null,null,null,null,null,null,null,null,null,null,null,"",null,null,"",0.2,null,{"$f":"Q214*R214","v":{"$error":"#VALUE!"}}]
[null,null,null,null,null,null,null,null,null,null,null,null,null,"",null,null,""]
[null,null,null,null,null,null,null,null,null,null,null,null,null,"",null,null,""]
[null,null,null,null,null,null,null,null,null,null,null,null,null,"",null,null,""]
[null,"38. Is a review of each element of the MSD prevention process conducted by an outside auditor with documented results and recommendations at least every three (3) years?",null,null,null,null,null,null,null,null,null,null,null,"",null,null,""]
[null,null,null,null,null,null,null,null,null,null,null,null,null,"",null,null,"",0.2,null,{"$f":"Q219*R219","v":{"$error":"#VALUE!"}}]
[null,null,null,null,null,null,null,null,null,null,null,null,null,"",null,null,""]
[null,null,null,null,null,null,null,null,null,null,null,null,null,"",null,null,""]
[null,null,null,null,null,null,null,null,null,null,null,null,null,"",null,null,""]
[null,"39. Are employees consulted to assess their views on the effectiveness of the program and to identify any significant deficiencies in the program?",null,null,null,null,null,null,null,null,null,null,null,"",null,null,""]
[null,null,null,null,null,null,null,null,null,null,null,null,null,"",null,null,"",0.2,null,{"$error":"#VALUE!"}]
[null,null,null,null,null,null,null,null,null,null,null,null,null,"",null,null,""]
[null,null,null,null,null,null,null,null,null,null,null,null,null,"",null,null,""]
[null,null,null,null,null,null,null,null,null,null,null,null,null,"",null,null,""]
[null,"40. Is the number and outcome of the early intervention consultations tracked and documented?",null,null,null,null,null,null,null,null,null,null,null,"",null,null,""]
[null,null,null,null,null,null,null,null,null,null,null,null,null,"",null,null,"",0.2,null,{"$error":"#VALUE!"}]
[null,null,null,null,null,null,null,null,null,null,null,null,null,"",null,null,""]
[null,null,null,null,null,null,null,null,null,null,null,null,null,"",null,null,""]
[null,null,null,null,null,null,null,null,null,null,null,null,null,"",null,null,""]
[null,"41. Are MSD cases, lost/restricted days, MIR and costs documented and tracked apart from all other injuries and illnesses?",null,null,null,null,null,null,null,null,null,null,null,"",null,null,""]
[null,null,null,null,null,null,null,null,null,null,null,null,null,"",null,null,"",0.2,null,{"$error":"#VALUE!"}]
[null,null,null,null,null,null,null,null,null,null,null,null,null,"",null,null,""]
[null,null,null,null,null,null,null,null,null,null,null,null,null,"",null,null,""]
[null,null,null,null,null,null,null,null,null,null,null,null,null,"",null,null,"",null,null,{"$f":"SUM(T214:T234)","v":{"$error":"#VALUE!"}},{"$f":"T237*100","v":{"$error":"#VALUE!"}}]
[null,null,null,null,null,null,null,null,null,null,null,null,null,"",null,null,""]
[null,null,null,null,null,null,null,null,null,null,null,null,null,"",null,null,""]
[null,"RESULTS",null,null,null,null,null,null,null,"Important - please answer \"yes\" or \"no\"",null,null,null,"",null,null,""]
[null,null,null,null,null,null,null,null,null,null,null,null,null,"",null,null,""]
[null,"41-45. Have reduction goals for MSD cases, lost/restricted workdays, MIR and costs been achieved? ",null,null,null,null,null,null,null,null,null,null,null,"",null,null,""]
[null,null,null,null,null,null,null,null,null,null,null,null,null,"",null,null,""]
[]
[]
[]
[]
[]
[]
[]
[]
[null,"AUDIT SCORE"]
[]
[null,{"$f":"F265","v":{"$error":"#VALUE!"}},null,"/ 100",null,{"$f":"LOOKUP(B254,{0,60,63,67,70,73,77,80,83,87,90,93,97},{\"F\",\"D-\",\"D\",\"D+\",\"C-\",\"C\",\"C+\",\"B-\",\"B\",\"B+\",\"A-\",\"A\",\"A+\"})","v":{"$error":"#VALUE!"}}]
[]
[]
[null,"Establishment",null,{"$f":"T70","v":{"$error":"#VALUE!"}},0.15,{"$f":"D257*E257","v":{"$error":"#VALUE!"}}]
[null,"Education",null,{"$f":"T98","v":{"$error":"#VALUE!"}},0.15,{"$f":"D258*E258","v":{"$error":"#VALUE!"}}]
[null,"Early Intervention",null,{"$f":"T128","v":{"$error":"#VALUE!"}},0.15,{"$error":"#VALUE!"}]
[null,"Ergonomics",null,{"$f":"T208","v":{"$error":"#VALUE!"}},0.15,{"$f":"D260*E260","v":{"$error":"#VALUE!"}}]
[null,"Evaluation",null,{"$f":"T237","v":{"$error":"#VALUE!"}},0.15,{"$error":"#VALUE!"}]
[null,"Results",null,{"$f":"Q243","v":""},0.25,{"$error":"#VALUE!"}]
[]
[null,null,null,null,null,{"$f":"SUM(F257:F262)","v":{"$error":"#VALUE!"}}]
[null,null,null,null,null,{"$f":"F264*100","v":{"$error":"#VALUE!"}}]